bitfinex-derivatives/quotes_BNBF0:USTF0_20250111
["timestamp","ask_amount","ask_price","bid_price","bid_amount"]
[1736555008549,0.79757507,691.86,690.55,0.28962421]
[1736555009145,0.79757507,691.85,690.55,0.28962421]
[1736555009445,0.79757507,691.84,690.55,0.28962421]
[1736555009848,0.79757507,691.88,690.55,0.28962421]
[1736555010341,0.79757507,691.87,690.55,0.28962421]
[1736555010846,0.28906329,691.89,690.55,0.28962421]
[1736555010847,0.79757507,691.86,690.55,0.28962421]
[1736555011548,0.79757507,691.85,690.55,0.28962421]
[1736555012050,0.79757507,691.84,690.55,0.28962421]
[1736555012553,0.79757507,691.83,690.55,0.28962421]
[1736555013052,0.79757507,691.88,690.55,0.28962421]
[1736555013447,0.79757507,691.87,690.55,0.28962421]
[1736555014053,0.79757507,691.86,690.55,0.28962421]
[1736555014752,0.79757507,691.85,690.55,0.28962421]
[1736555015153,0.79757507,691.84,690.55,0.28962421]
[1736555015752,0.79757507,691.88,690.55,0.28962421]
[1736555016453,0.79757507,691.87,690.55,0.28962421]
[1736555016850,0.79757507,691.88,690.55,0.28962421]
[1736555024964,0.28906329,691.89,690.55,0.28962421]
[1736555051476,0.28906329,691.89,690.55,2.49576584]
[1736555052378,0.28906329,691.89,690.57,2.20614163]
[1736555052577,0.28906329,691.89,690.58,0.28961163]
[1736555052878,0.28906329,691.89,690.58,2.49575326]
[1736555056380,0.28906329,691.89,690.59,2.20614163]
[1736555056581,0.28906329,691.89,690.6,0.28960324]
[1736555057386,0.28906329,691.89,690.61,2.20614163]
[1736555058383,0.28906329,691.89,690.62,2.20614163]
[1736555059886,0.79736841,691.88,690.6,0.28960324]
[1736555060184,0.28906329,691.89,690.6,0.28960324]
[1736555061081,0.79738729,691.88,690.6,0.28960324]
[1736555061687,0.79738729,691.87,690.6,0.28960324]
[1736555062285,0.28906329,691.89,690.6,0.28960324]
[1736555062685,0.79739575,691.88,690.6,0.28960324]
[1736555063280,0.79739575,691.87,690.6,0.28960324]
[1736555063983,0.28906329,691.89,690.6,0.28960324]
[1736555064890,0.79745623,691.88,690.6,0.28960324]
[1736555065290,0.28906329,691.89,690.6,0.28960324]
[1736555065291,0.79745623,691.87,690.6,0.28960324]
[1736555065890,0.28906329,691.89,690.6,0.28960324]
[1736555065891,0.79745623,691.86,690.6,0.28960324]
[1736555066286,0.28906329,691.89,690.6,0.28960324]
[1736555066287,0.79745623,691.88,690.6,0.28960324]
[1736555072390,0.78438311,691.88,690.6,0.28960324]
[1736555073693,0.28906329,691.89,690.6,0.28960324]
[1736555080997,1.36277583,691.89,690.6,0.28960324]
[1736555083301,0.28906329,691.89,690.6,0.28960324]
[1736555084796,0.79734617,691.88,690.6,0.28960324]
[1736555085403,0.79734617,691.87,690.6,0.28960324]
[1736555086004,0.79734617,691.86,690.6,0.28960324]
[1736555086906,0.79734617,691.85,690.6,0.28960324]
[1736555087303,0.79734617,691.84,690.6,0.28960324]
[1736555087703,0.28906329,691.89,690.6,0.28960324]
[1736555088008,0.79720969,691.88,690.6,0.28960324]
[1736555088406,0.79720969,691.87,690.6,0.28960324]
[1736555089006,0.79720969,691.88,690.6,0.28960324]
[1736555089206,1.87092223,691.87,690.6,0.28960324]
[1736555089602,0.79720969,691.86,690.6,0.28960324]
[1736555089803,1.87092223,691.85,690.6,0.28960324]
[1736555090607,0.79720969,691.84,690.6,0.28960324]
[1736555091108,1.07371254,691.81,690.6,0.28960324]
[1736555093508,1.07371254,691.8,690.6,0.28960324]
[1736555094513,0.28906329,691.89,690.6,0.28960324]
[1736555094514,1.07371254,691.78,690.6,0.28960324]
[1736555098720,1.07371254,691.81,690.6,0.28960324]
[1736555099418,1.07371254,691.82,690.6,0.28960324]
[1736555100521,1.07371254,691.81,690.6,0.28960324]
[1736555103221,1.87080245,691.8,690.6,0.28960324]
[1736555103821,0.79708991,691.79,690.6,0.28960324]
[1736555104620,0.79708991,691.78,690.6,0.28960324]
[1736555105126,0.79708991,691.77,690.6,0.28960324]
[1736555105525,0.79708991,691.76,690.6,0.28960324]
[1736555106029,1.07371254,691.84,690.6,0.28960324]
[1736555106327,1.07371254,691.86,690.6,0.28960324]
[1736555106827,0.79689346,691.85,690.6,0.28960324]
[1736555107122,1.870606,691.85,690.6,0.28960324]
[1736555107526,0.79689346,691.84,690.6,0.28960324]
[1736555107921,0.79689346,691.83,690.6,0.28960324]
[1736555108528,0.79689346,691.82,690.6,0.28960324]
[1736555109125,0.79689346,691.84,690.6,0.28960324]
[1736555109625,0.79689346,691.83,690.6,0.28960324]
[1736555109827,0.79689346,691.82,690.6,0.28960324]
[1736555110525,0.79689346,691.81,690.6,0.28960324]
[1736555110927,0.79689346,691.85,690.6,0.28960324]
[1736555111528,0.79689346,691.84,690.6,0.28960324]
[1736555112030,0.79689346,691.83,690.6,0.28960324]
[1736555112732,0.79689346,691.82,690.6,0.28960324]
[1736555113130,0.79689346,691.81,690.6,0.28960324]
[1736555113530,1.07371254,691.78,690.6,0.28960324]
[1736555113932,0.79689346,691.77,690.6,0.28960324]
[1736555115332,0.79689346,691.78,690.6,0.28960324]
[1736555116033,0.79689346,691.77,690.6,0.28960324]
[1736555116732,0.79689346,691.78,690.6,0.28960324]
[1736555117132,0.79689346,691.77,690.6,0.28960324]
[1736555117532,0.79689346,691.76,690.6,0.28960324]
[1736555117927,0.79689346,691.79,690.6,0.28960324]
[1736555118329,1.07371254,691.75,690.6,0.28960324]
[1736555119036,1.07371254,691.78,690.6,0.28960324]
[1736555119833,1.07371254,691.82,690.6,0.28960324]
[1736555120335,1.07371254,691.82,690.6,0.28508564]
[1736555121034,0.79766659,691.81,690.6,0.28508564]
[1736555121437,1.07371254,691.82,690.6,0.28508564]
[1736555122238,0.79769189,691.81,690.6,0.28508564]
[1736555122438,1.87140443,691.81,690.6,0.28508564]
[1736555122633,0.79769189,691.8,690.6,0.28508564]
[1736555122939,0.79769189,691.79,690.6,0.28508564]
[1736555123339,1.07371254,691.8,690.6,0.28508564]
[1736555124242,0.79767477,691.79,690.6,0.28508564]
[1736555124635,1.07371254,691.81,690.6,0.28508564]
[1736555124961,1.07371254,691.8,690.6,0.28508564]
[1736555125141,1.87142871,691.8,690.6,0.28508564]
[1736555125734,1.07371254,691.8,690.6,0.28508564]
[1736555125936,1.07371254,691.81,690.6,0.28508564]
[1736555127047,1.07371254,691.84,690.6,0.28508564]
[1736555127441,0.79776612,691.83,690.6,0.28508564]
[1736555127845,1.07371254,691.84,690.6,0.28508564]
[1736555128042,1.07371254,691.87,690.6,0.28508564]
[1736555128647,0.79779343,691.86,690.6,0.28508564]
[1736555129442,0.28906329,691.89,690.6,0.28508564]
[1736555129845,0.79775434,691.88,690.6,0.28508564]
[1736555130145,0.79775434,691.87,690.6,0.28508564]
[1736555130742,0.79775434,691.88,690.6,0.28508564]
[1736555130941,0.79775434,691.87,690.6,0.28508564]
[1736555131547,0.79775434,691.86,690.6,0.28508564]
[1736555132049,0.79775434,691.85,690.6,0.28508564]
[1736555132449,0.28906329,691.89,690.6,0.28508564]
[1736555133049,0.79759294,691.88,690.6,0.28508564]
[1736555133648,0.79759294,691.87,690.6,0.28508564]
[1736555134448,0.79759294,691.88,690.6,0.28508564]
[1736555137656,0.28906329,691.89,690.6,0.28508564]
[1736555180984,0.28906329,691.89,690.64,2.20614163]
[1736555181186,0.28906329,691.89,690.65,0.28958227]
[1736555182591,0.28906329,691.89,690.65,2.4957239]
[1736555183892,0.28906329,691.89,690.65,0.28958227]
[1736555192197,0.79765112,691.88,690.65,0.28958227]
[1736555192997,0.79765112,691.87,690.65,0.28958227]
[1736555193396,0.79765112,691.86,690.65,0.28958227]
[1736555194203,0.79765112,691.85,690.65,0.28958227]
[1736555194502,0.79765112,691.84,690.65,0.28958227]
[1736555195099,0.28906329,691.89,690.65,0.28958227]
[1736555195703,0.79751435,691.88,690.65,0.28958227]
[1736555196104,0.79751435,691.87,690.65,0.28958227]
[1736555196804,0.79751435,691.88,690.65,0.28958227]
[1736555197299,0.79751435,691.86,690.65,0.28958227]
[1736555197806,0.79751435,691.88,690.65,0.28958227]
[1736555198504,0.28906329,691.89,690.65,0.28958227]
[1736555198505,0.79751435,691.87,690.65,0.28958227]
[1736555198904,0.79751435,691.86,690.65,0.28958227]
[1736555199405,0.79751435,691.85,690.65,0.28958227]
[1736555200000,0.79751435,691.84,690.65,0.28958227]
[1736555200402,0.79751435,691.83,690.65,0.28958227]
[1736555200805,0.28906329,691.89,690.65,0.28958227]
[1736555201199,0.79711098,691.88,690.65,0.28958227]
[1736555201906,0.79711098,691.87,690.65,0.28958227]
[1736555202607,0.28906329,691.89,690.65,0.28958227]
[1736555202608,0.79711098,691.86,690.65,0.28958227]
[1736555202809,0.28906329,691.89,690.65,0.28958227]
[1736555203607,0.7968423,691.88,690.65,0.28958227]
[1736555204207,0.7968423,691.87,690.65,0.28958227]
[1736555204405,0.7968423,691.86,690.65,0.28958227]
[1736555204807,0.28906329,691.89,690.65,0.28958227]
[1736555205200,0.7967518,691.88,690.65,0.28958227]
[1736555205600,0.7967518,691.87,690.65,0.28958227]
[1736555206406,0.7967518,691.86,690.65,0.28958227]
[1736555206910,0.28906329,691.89,690.65,0.28958227]
[1736555207308,0.79659886,691.88,690.65,0.28958227]
[1736555207702,0.79659886,691.87,690.65,0.28958227]
[1736555208504,0.79659886,691.86,690.65,0.28958227]
[1736555208904,0.79659886,691.85,690.65,0.28958227]
[1736555209310,0.79659886,691.84,690.65,0.28958227]
[1736555209910,0.28906329,691.89,690.65,0.28958227]
[1736555210507,0.79639733,691.88,690.65,0.28958227]
[1736555211011,0.79639733,691.87,690.65,0.28958227]
[1736555211403,0.79639733,691.86,690.65,0.28958227]
[1736555212007,0.79639733,691.85,690.65,0.28958227]
[1736555212408,0.28906329,691.89,690.65,0.28958227]
[1736555212409,0.79639733,691.84,690.65,0.28958227]
[1736555212907,0.79639733,691.83,690.65,0.28958227]
[1736555213607,0.79639733,691.82,690.65,0.28958227]
[1736555214107,0.79639733,691.81,690.65,0.28958227]
[1736555214614,0.79639733,691.8,690.65,0.28958227]
[1736555215306,0.79639733,691.79,690.65,0.28958227]
[1736555216111,0.79639733,691.78,690.65,0.28958227]
[1736555216707,0.28906329,691.89,690.65,0.28958227]
[1736555217111,0.79574459,691.88,690.65,0.28958227]
[1736555218007,0.79574459,691.87,690.65,0.28958227]
[1736555218408,0.79574459,691.86,690.65,0.28958227]
[1736555219107,0.79574459,691.85,690.65,0.28958227]
[1736555219808,0.79574459,691.84,690.65,0.28958227]
[1736555220811,0.28906329,691.89,690.65,0.28958227]
[1736555221310,0.79571334,691.88,690.65,0.28958227]
[1736555221913,0.79571334,691.87,690.65,0.28958227]
[1736555222313,0.79571334,691.88,690.65,0.28958227]
[1736555227413,1.07371254,691.82,690.65,0.28958227]
[1736555228418,1.07371254,691.84,690.65,0.28958227]
[1736555229221,1.07371254,691.82,690.65,0.28958227]
[1736555231115,1.07371254,691.81,690.65,0.28958227]
[1736555232318,1.07371254,691.82,690.65,0.28958227]
[1736555233013,1.07371254,691.84,690.65,0.28958227]
[1736555234817,1.07371254,691.83,690.65,0.28958227]
[1736555236313,1.07371254,691.82,690.65,0.28958227]
[1736555237324,1.07371254,691.84,690.65,0.28958227]
[1736555238923,1.07371254,691.83,690.65,0.28958227]
[1736555239522,1.07371254,691.84,690.65,0.28958227]
[1736555240221,1.07371254,691.82,690.65,0.28958227]
[1736555241324,0.28906329,691.89,690.65,0.28958227]
[1736555241325,1.07371254,691.88,690.65,0.28958227]
[1736555242133,0.28906329,691.89,690.65,0.28958227]
[1736555258949,1.07371254,692.54,690.65,0.28958227]
[1736555259150,0.28880032,692.52,690.65,0.28958227]
[1736555260050,0.79682492,692.51,690.65,0.28958227]
[1736555260251,0.28881283,692.49,690.65,0.28958227]
[1736555260451,1.06235632,692.48,690.65,0.28958227]
[1736555260651,0.55435086,692.47,690.65,0.28958227]
[1736555260849,0.28882534,692.46,690.65,0.28958227]
[1736555261447,1.07371254,692.36,690.65,0.28958227]
[1736555261647,0.28887123,692.35,690.65,0.28958227]
[1736555261846,1.08569615,692.35,690.65,0.28958227]
[1736555262752,0.79682492,692.34,690.65,0.28958227]
[1736555262948,0.28887958,692.33,690.65,0.28958227]
[1736555263147,1.0857045,692.33,690.65,0.28958227]
[1736555263345,0.79682492,692.32,690.65,0.28958227]
[1736555263545,0.28888792,692.31,690.65,0.28958227]
[1736555263954,0.79682492,692.3,690.65,0.28958227]
[1736555264653,0.79682492,692.29,690.65,0.28958227]
[1736555264848,0.28888792,692.31,690.65,0.28958227]
[1736555265251,0.79528668,692.3,690.65,0.28958227]
[1736555265754,0.28888792,692.31,690.65,0.28958227]
[1736555285665,0.28888792,692.31,690.69,2.19985666]
[1736555286566,0.28888792,692.31,690.73,2.19985666]
[1736555286766,0.28888792,692.31,690.75,0.28954035]
[1736555287268,0.28888792,692.31,690.75,2.48939701]
[1736555287971,0.28888792,692.31,690.76,2.19985666]
[1736555288169,0.28888792,692.31,690.77,0.28953197]
[1736555289363,0.28888792,692.31,690.81,2.19985666]
[1736555289964,0.28888792,692.31,690.82,0.28951101]
[1736555290168,0.28888792,692.31,690.83,2.19985666]
[1736555290567,0.28888792,692.31,690.84,0.28950263]
[1736555290768,0.28888792,692.31,690.84,2.48935929]
[1736555291568,0.28888792,692.31,690.84,0.28950263]
[1736555292170,0.28888792,692.31,690.86,2.19985666]
[1736555292368,0.28888792,692.31,690.87,0.28949006]
[1736555293071,1.36076362,692.31,690.88,2.19985666]
[1736555293267,1.36076362,692.31,690.89,0.28948168]
[1736555293867,1.0718757,692.3,690.89,2.48933834]
[1736555294866,1.0718757,692.29,690.89,2.48933834]
[1736555296772,1.0718757,692.3,690.9,2.19985666]
[1736555296969,1.0718757,692.3,690.91,0.2894733]
[1736555298972,1.0718757,692.29,690.91,0.2894733]
[1736555300172,1.0718757,692.3,690.91,2.48932996]
[1736555300968,1.0718757,692.29,690.91,3.55472775]
[1736555301173,1.0718757,692.29,690.91,0.2894733]
[1736555303577,1.36076362,692.31,690.92,2.19985666]
[1736555303778,1.36076362,692.31,690.93,0.28946492]
[1736555304077,0.28888792,692.31,690.95,2.19985666]
[1736555304277,0.28888792,692.31,690.96,0.28945235]
[1736555304977,0.28888792,692.31,690.97,2.19985666]
[1736555305177,0.28888792,692.31,690.98,0.28944397]
[1736555305579,0.28888792,692.31,690.98,2.48930063]
[1736555306178,0.28888792,692.31,690.99,0.28943978]
[1736555306981,0.28888792,692.31,690.99,2.48929644]
[1736555308278,0.28888792,692.31,690.99,0.28943978]
[1736555314687,1.0718757,692.93,690.99,0.28943978]
[1736555314688,1.0718757,692.64,690.99,0.28943978]
[1736555315692,1.0718757,692.7,690.99,0.28943978]
[1736555315891,0.28872944,692.69,690.99,0.28943978]
[1736555316293,0.79595746,692.68,690.99,0.28943978]
[1736555316995,0.79595746,692.67,690.99,0.28943978]
[1736555317196,0.79595746,692.66,690.99,0.28943978]
[1736555317797,0.79595746,692.65,690.99,0.28943978]
[1736555318300,0.79595746,692.64,690.99,0.28943978]
[1736555318695,0.28872944,692.69,690.99,0.28943978]
[1736555319196,0.79581785,692.68,690.99,0.28943978]
[1736555319497,0.79581785,692.67,690.99,0.28943978]
[1736555319997,0.79581785,692.66,690.99,0.28943978]
[1736555320196,0.28872944,692.69,690.99,0.28943978]
[1736555320698,0.79560437,692.68,690.99,0.28943978]
[1736555321391,0.79560437,692.67,690.99,0.28943978]
[1736555321798,0.79560437,692.66,690.99,0.28943978]
[1736555322300,0.28872944,692.69,690.99,0.28943978]
[1736555322696,0.79542585,692.68,690.99,0.28943978]
[1736555323403,0.28872944,692.69,690.99,0.28943978]
[1736555324595,0.79523637,692.68,690.99,0.28943978]
[1736555324794,1.08396998,692.68,690.99,0.28943978]
[1736555325001,0.79523637,692.67,690.99,0.28943978]
[1736555325500,0.79523637,692.66,690.99,0.28943978]
[1736555326297,0.79523637,692.65,690.99,0.28943978]
[1736555326700,0.28873361,692.68,690.99,0.28943978]
[1736555327705,0.79494606,692.67,690.99,0.28943978]
[1736555328105,0.79494606,692.66,690.99,0.28943978]
[1736555328907,0.79494606,692.67,690.99,0.28943978]
[1736555329401,0.79494606,692.66,690.99,0.28943978]
[1736555330104,0.28873361,692.68,690.99,0.28943978]
[1736555330505,0.79492933,692.67,690.99,0.28943978]
[1736555331205,0.28873361,692.68,690.99,0.28943978]
[1736555332101,0.79491672,692.67,690.99,0.28943978]
[1736555332506,0.28873361,692.68,690.99,0.28943978]
[1736555333307,0.79490898,692.67,690.99,0.28943978]
[1736555333909,0.28873361,692.68,690.99,0.28943978]
[1736555334707,0.79493026,692.67,690.99,0.28943978]
[1736555335303,0.79493026,692.66,690.99,0.28943978]
[1736555335807,0.28873361,692.68,690.99,0.28943978]
[1736555336210,0.79477798,692.67,690.99,0.28943978]
[1736555336809,0.79477798,692.66,690.99,0.28943978]
[1736555337009,1.0718757,692.65,691.0,2.19985666]
[1736555337208,1.0718757,692.65,691.02,0.28942722]
[1736555337613,1.0718757,692.66,691.02,0.28942722]
[1736555338514,1.0718757,692.63,691.04,2.19985666]
[1736555338813,1.0718757,692.63,691.05,0.28941465]
[1736555339214,0.28873361,692.68,691.05,0.28941465]
[1736555339215,1.0718757,692.6,691.09,2.19985666]
[1736555339713,1.0718757,692.6,691.1,0.28939372]
[1736555340415,1.0718757,692.61,691.12,2.19985666]
[1736555340913,1.0718757,692.61,691.13,0.28938115]
[1736555341612,1.0718757,692.58,691.13,0.28938115]
[1736555343617,1.0718757,692.56,691.14,2.19985666]
[1736555343810,1.0718757,692.56,691.15,0.28937278]
[1736555344618,1.0718757,692.53,691.15,2.48922944]
[1736555345718,1.0718757,692.51,691.16,2.19985666]
[1736555347120,1.0718757,692.49,691.21,2.19985666]
[1736555347311,1.0718757,692.49,691.22,0.28934347]
[1736555347919,1.0718757,692.49,691.22,2.48920013]
[1736555348616,1.0718757,692.47,691.22,0.28934347]
[1736555349720,1.0718757,692.47,691.22,2.48920013]
[1736555350518,1.0718757,692.48,691.23,2.19985666]
[1736555350720,1.0718757,692.48,691.24,0.2893351]
[1736555351517,0.28873361,692.68,691.24,0.2893351]
[1736555351921,0.79590797,692.67,691.24,0.2893351]
[1736555352422,0.79590797,692.66,691.24,0.2893351]
[1736555353017,0.79590797,692.67,691.24,0.2893351]
[1736555356522,0.79590797,692.66,691.24,0.2893351]
[1736555357325,0.79590797,692.67,691.24,0.2893351]
[1736555358125,0.79590797,692.66,691.24,0.2893351]
[1736555358526,0.79590797,692.65,691.24,0.2893351]
[1736555358928,0.79590797,692.64,691.24,0.2893351]
[1736555359729,0.79590797,692.63,691.24,0.2893351]
[1736555359929,0.79590797,692.62,691.24,0.2893351]
[1736555360329,0.79590797,692.67,691.24,0.2893351]
[1736555360530,1.0718757,692.56,691.24,0.2893351]
[1736555361325,1.0718757,692.57,691.24,0.2893351]
[1736555361726,0.79734701,692.56,691.24,0.2893351]
[1736555362133,1.0718757,692.57,691.24,0.2893351]
[1736555362332,1.0718757,692.56,691.24,0.2893351]
[1736555362928,0.79762266,692.55,691.24,0.2893351]
[1736555363529,0.79762266,692.54,691.24,0.2893351]
[1736555363732,0.79762266,692.56,691.24,0.2893351]
[1736555363932,1.86949836,692.56,691.24,0.2893351]
[1736555364133,0.79762266,692.55,691.24,0.2893351]
[1736555364839,0.79762266,692.54,691.24,0.2893351]
[1736555365334,0.79762266,692.62,691.24,0.2893351]
[1736555365838,1.0718757,692.55,691.24,0.2893351]
[1736555366736,0.79824505,692.54,691.24,0.2893351]
[1736555367334,1.0718757,692.56,691.24,0.2893351]
[1736555367638,0.79827382,692.55,691.24,0.2893351]
[1736555368034,0.79827382,692.54,691.24,0.2893351]
[1736555368737,0.79827382,692.63,691.24,0.2893351]
[1736555369140,1.87014952,692.63,691.24,0.2893351]
[1736555369740,0.79827382,692.62,691.24,0.2893351]
[1736555370439,0.79827382,692.61,691.24,0.2893351]
[1736555370834,0.79827382,692.6,691.24,0.2893351]
[1736555371235,0.79827382,692.59,691.24,0.2893351]
[1736555371438,0.79827382,692.58,691.24,0.2893351]
[1736555371742,0.79827382,692.57,691.24,0.2893351]
[1736555372342,0.79827382,692.56,691.24,0.2893351]
[1736555372739,0.79827382,692.55,691.24,0.2893351]
[1736555373243,0.79827382,692.54,691.24,0.2893351]
[1736555373841,0.79827382,692.53,691.24,0.2893351]
[1736555374341,0.79827382,692.52,691.24,0.2893351]
[1736555374944,0.79827382,692.51,691.24,0.2893351]
[1736555375144,0.79827382,692.5,691.24,0.2893351]
[1736555375744,1.0718757,692.66,691.24,0.2893351]
[1736555376441,0.79905905,692.65,691.24,0.2893351]
[1736555376846,0.79905905,692.64,691.24,0.2893351]
[1736555377442,0.79905905,692.63,691.24,0.2893351]
[1736555377849,0.28873361,692.68,691.24,0.2893351]
[1736555377850,0.79905905,692.62,691.24,0.2893351]
[1736555378045,0.28873361,692.68,691.24,0.2893351]
[1736555378243,1.07720585,692.64,691.24,0.2893351]
[1736555378448,0.79909108,692.61,691.24,0.2893351]
[1736555378849,0.79909108,692.6,691.24,0.2893351]
[1736555379349,0.79909108,692.59,691.24,0.2893351]
[1736555379749,0.79909108,692.58,691.24,0.2893351]
[1736555380150,0.79909108,692.57,691.24,0.2893351]
[1736555380845,0.79909108,692.56,691.24,0.2893351]
[1736555381552,0.79909108,692.55,691.24,0.2893351]
[1736555382151,0.79909108,692.54,691.24,0.2893351]
[1736555382551,0.79909108,692.53,691.24,0.2893351]
[1736555383052,1.07720585,692.63,691.24,0.2893351]
[1736555383453,1.07720585,692.61,691.24,0.2893351]
[1736555383648,0.79894485,692.6,691.24,0.2893351]
[1736555384147,0.79894485,692.59,691.24,0.2893351]
[1736555384350,0.79894485,692.58,691.24,0.2893351]
[1736555385053,1.07720585,692.55,691.24,0.2893351]
[1736555385452,0.79894485,692.54,691.24,0.2893351]
[1736555386051,1.07720585,692.55,691.24,0.2893351]
[1736555386661,1.07720585,692.56,691.24,0.2893351]
[1736555387153,0.79893709,692.55,691.24,0.2893351]
[1736555387751,1.87614294,692.55,691.24,0.2893351]
[1736555387951,0.79893709,692.54,691.24,0.2893351]
[1736555388251,1.07720585,692.55,691.24,0.2893351]
[1736555388657,1.07720585,692.56,691.24,0.2893351]
[1736555389359,0.79891414,692.55,691.24,0.2893351]
[1736555389757,1.07720585,692.56,691.24,0.2893351]
[1736555390656,1.07720585,692.57,691.24,0.2893351]
[1736555391251,0.79889674,692.56,691.24,0.2893351]
[1736555391651,1.07720585,692.58,691.24,0.2893351]
[1736555392057,1.07720585,692.55,691.24,0.2893351]
[1736555392259,1.07720585,692.55,691.28,2.21000058]
[1736555392957,1.07720585,692.6,691.31,2.21000058]
[1736555393556,1.07720585,692.6,691.3,2.21000058]
[1736555393756,1.07720585,692.6,691.31,0.28930581]
[1736555393957,0.79870399,692.59,691.31,0.28930581]
[1736555394359,1.07720585,692.58,691.31,0.28930581]
[1736555396555,1.07720585,692.57,691.31,0.28930581]
[1736555396757,1.87587408,692.57,691.31,0.28930581]
[1736555397260,1.07720585,692.57,691.31,0.28930581]
[1736555398463,1.07720585,692.59,691.31,0.28930581]
[1736555399260,0.28873361,692.68,691.31,0.28930581]
[1736555399261,1.07720585,692.61,691.31,0.28930581]
[1736555400061,1.07720585,692.6,691.31,0.28930581]
[1736555400660,1.07720585,692.67,691.35,2.21000058]
[1736555401560,0.28873361,692.68,691.31,0.28930581]
[1736555414372,0.28873361,692.68,691.49,2.21000058]
[1736555415072,0.28873361,692.68,691.31,0.28930581]
[1736555415073,0.28873361,692.68,691.5,2.21000058]
[1736555415768,0.28873361,692.68,691.48,2.21000058]
[1736555416767,0.28873361,692.68,691.47,2.21000058]
[1736555417467,0.28873361,692.68,691.45,2.21000058]
[1736555417874,0.28873361,692.68,691.45,5.48206809]
[1736555418074,0.28873361,692.68,691.46,3.27206751]
[1736555418473,0.28873361,692.68,691.32,3.27206751]
[1736555418677,0.28873361,692.68,691.31,2.49930639]
[1736555419075,0.28873361,692.68,691.31,0.28930581]
[1736555424480,1.07720585,693.1,691.33,2.21000058]
[1736555424681,0.28856281,693.09,691.35,0.28928907]
[1736555425485,0.28856281,693.09,691.36,2.21000058]
[1736555425679,0.28856281,693.09,691.38,0.28927651]
[1736555426183,0.28856281,693.09,691.51,2.21000058]
[1736555426483,0.28856281,693.09,691.52,0.28921795]
[1736555441787,0.28856281,693.09,691.57,2.21000058]
[1736555441987,0.28856281,693.09,691.58,0.28919286]
[1736555442395,0.28856281,693.09,691.6,2.21000058]
[1736555442594,0.28856281,693.09,691.61,0.28918031]
[1736555443795,0.28856281,693.09,691.61,2.49918089]
[1736555444591,0.28856281,693.09,691.62,2.21000058]
[1736555444794,0.28856281,693.09,691.63,0.28917195]
[1736555445393,0.28856281,693.09,691.65,2.21000058]
[1736555445596,0.28856281,693.09,691.66,0.28915941]
[1736555446295,0.28856281,693.09,691.7,2.21000058]
[1736555446900,0.28856281,693.09,691.71,0.28913851]
[1736555447501,0.28856281,693.09,691.75,2.21000058]
[1736555448102,0.28856281,693.09,691.77,2.21000058]
[1736555449203,0.28856281,693.09,691.71,0.28913851]
[1736555459104,1.07720585,693.64,691.71,0.28913851]
[1736555459311,0.55341174,693.63,691.71,0.28913851]
[1736555459511,0.26507358,693.62,691.71,0.28913851]
[1736555459711,0.28834647,693.61,691.71,0.28913851]
[1736555460011,1.07720585,693.6,691.72,2.21000058]
[1736555460212,0.28835479,693.59,691.74,0.28912597]
[1736555460807,1.07720585,693.58,691.8,2.21000058]
[1736555461011,0.2883631,693.57,691.82,0.28909253]
[1736555461914,0.2883631,693.57,691.82,2.49909311]
[1736555463113,0.2883631,693.57,691.82,0.28909253]
[1736555480329,0.79452774,693.56,691.82,0.28909253]
[1736555480529,0.28837142,693.55,691.82,0.28909253]
[1736555481926,0.79470605,693.54,691.82,0.28909253]
[1736555482327,0.79470605,693.53,691.82,0.28909253]
[1736555482724,0.79470605,693.52,691.82,0.28909253]
[1736555483128,0.79470605,693.54,691.82,0.28909253]
[1736555483332,0.79470605,693.51,691.82,0.28909253]
[1736555483732,0.79470605,693.54,691.82,0.28909253]
[1736555483933,0.28837973,693.53,691.82,0.28909253]
[1736555484334,0.79470605,693.52,691.82,0.28909253]
[1736555484538,0.28838805,693.51,691.82,0.28909253]
[1736555484734,0.79470605,693.5,691.82,0.28909253]
[1736555485035,0.28839637,693.49,691.82,0.28909253]
[1736555485432,0.79470605,693.48,691.82,0.28909253]
[1736555485632,0.28840468,693.47,691.82,0.28909253]
[1736555487035,0.79538715,693.46,691.82,0.28909253]
[1736555487238,0.288413,693.45,691.82,0.28909253]
[1736555487736,0.79538715,693.44,691.82,0.28909253]
[1736555488031,0.28842132,693.43,691.82,0.28909253]
[1736555492641,0.79595741,693.42,691.82,0.28909253]
[1736555492834,0.28842964,693.41,691.82,0.28909253]
[1736555494441,0.79613757,693.4,691.82,0.28909253]
[1736555494637,0.79613757,693.39,691.82,0.28909253]
[1736555495035,0.28842964,693.41,691.82,0.28909253]
[1736555501746,1.07720585,693.37,691.82,0.28909253]
[1736555501939,0.28845044,693.36,691.82,0.28909253]
[1736555502646,0.79693816,693.35,691.82,0.28909253]
[1736555502849,0.28845876,693.34,691.82,0.28909253]
[1736555503041,1.08539692,693.34,691.82,0.28909253]
[1736555503642,0.79693816,693.33,691.82,0.28909253]
[1736555503951,0.28846708,693.32,691.82,0.28909253]
[1736555504447,0.79693816,693.31,691.82,0.28909253]
[1736555508548,1.0854094,693.31,691.82,0.28909253]
[1736555509347,0.79693816,693.3,691.82,0.28909253]
[1736555509848,1.36567709,693.31,691.82,0.28909253]
[1736555510855,0.79775984,693.3,691.82,0.28909253]
[1736555511351,0.79775984,693.29,691.82,0.28909253]
[1736555511947,0.79775984,693.28,691.82,0.28909253]